[Event "*** SCC Grand Prix: Titled Tuesday Blitz"]
[Site "Chess.com"]
[Date "2020.10.13"]
[Round "5"]
[White "Vamostodorecto"]
[Black "Chesswizard_2007"]
[Result "0-1"]
[WhiteElo "2368"]
[BlackElo "2570"]
[TimeControl "180+1"]
[EndTime "10:56:22 PDT"]
[Termination "Chesswizard_2007 won by resignation"]

1. d4 {[%clk 0:03:00.9]} 1... a5 {[%clk 0:02:59.2]} 2. e4 {[%clk 0:02:59.1]}
2... b6 {[%clk 0:02:56.6]} 3. Nf3 {[%clk 0:02:58.8]} 3... Ba6 {[%clk 0:02:57.5]}
4. c4 {[%clk 0:02:56.3]} 4... d6 {[%clk 0:02:54.6]} 5. Nc3 {[%clk 0:02:55.3]}
5... g6 {[%clk 0:02:52.8]} 6. h4 {[%clk 0:02:53.3]} 6... h5 {[%clk 0:02:52.6]}
7. Be3 {[%clk 0:02:51.4]} 7... Bg7 {[%clk 0:02:52.7]} 8. Bd3 {[%clk 0:02:50.4]}
8... Nf6 {[%clk 0:02:52.5]} 9. Qe2 {[%clk 0:02:49.8]} 9... c5 {[%clk 0:02:47.7]}
10. d5 {[%clk 0:02:49.1]} 10... Ng4 {[%clk 0:02:44.2]} 11. Bf4 {[%clk
0:02:44.6]} 11... Nd7 {[%clk 0:02:43.7]} 12. O-O {[%clk 0:02:40.5]} 12... Nde5
{[%clk 0:02:37.3]} 13. Nxe5 {[%clk 0:02:39.9]} 13... Bxe5 {[%clk 0:02:33.4]} 14.
Bxe5 {[%clk 0:02:39]} 14... Nxe5 {[%clk 0:02:34.3]} 15. f4 {[%clk 0:02:37.3]}
15... Ng4 {[%clk 0:02:33.9]} 16. e5 {[%clk 0:02:34.9]} 16... e6 {[%clk
0:02:17.2]} 17. g3 {[%clk 0:02:25.4]} 17... dxe5 {[%clk 0:01:43.5]} 18. fxe5
{[%clk 0:02:26.3]} 18... Qd7 {[%clk 0:01:41.2]} 19. Ne4 {[%clk 0:02:16]} 19...
Rf8 {[%clk 0:01:33.2]} 20. Nd6+ {[%clk 0:02:07.5]} 20... Kd8 {[%clk 0:01:29.4]}
21. Be4 {[%clk 0:01:46.4]} 21... Rb8 {[%clk 0:01:17.3]} 22. Rad1 {[%clk
0:01:45.3]} 22... Kc7 {[%clk 0:01:13.2]} 23. Bf3 {[%clk 0:00:59.7]} 23... f5
{[%clk 0:01:06.5]} 24. exf6 {[%clk 0:00:46.3]} 24... Qxd6 {[%clk 0:01:04.3]} 25.
Bxg4 {[%clk 0:00:36.3]} 25... Qxg3+ {[%clk 0:01:03.4]} 26. Qg2 {[%clk
0:00:34.3]} 26... Qxg2+ {[%clk 0:01:00.6]} 27. Kxg2 {[%clk 0:00:35.2]} 27...
hxg4 {[%clk 0:01:01.5]} 28. dxe6 {[%clk 0:00:35]} 28... Bb7+ {[%clk 0:01:01.4]}
29. Kg3 {[%clk 0:00:33.2]} 29... Bf3 {[%clk 0:01:02.3]} 30. Rd7+ {[%clk
0:00:31.6]} 30... Kc6 {[%clk 0:01:00.8]} 31. f7 {[%clk 0:00:28.6]} 31... b5
{[%clk 0:00:45.1]} 32. cxb5+ {[%clk 0:00:26.8]} 32... Kxb5 {[%clk 0:00:46]} 33.
Re1 {[%clk 0:00:26.4]} 33... a4 {[%clk 0:00:43.4]} 34. a3 {[%clk 0:00:23.9]}
34... Kc4 {[%clk 0:00:42.3]} 35. Rd2 {[%clk 0:00:23.4]} 35... Kb3 {[%clk
0:00:40.5]} 36. e7 {[%clk 0:00:21.9]} 36... Rxf7 {[%clk 0:00:40.1]} 37. e8=Q
{[%clk 0:00:22.5]} 37... Rxe8 {[%clk 0:00:40.6]} 38. Rxe8 {[%clk 0:00:22.7]}
38... Rb7 {[%clk 0:00:40.1]} 39. Re3+ {[%clk 0:00:23]} 39... Kc4 {[%clk
0:00:36.9]} 40. Rc3+ {[%clk 0:00:23.9]} 40... Kb5 {[%clk 0:00:34.9]} 41. Rdc2
{[%clk 0:00:22.3]} 41... Rc7 {[%clk 0:00:33.5]} 42. Rc4 {[%clk 0:00:22]} 42...
Rc8 {[%clk 0:00:28.8]} 43. Kf4 {[%clk 0:00:20.7]} 43... Rc7 {[%clk 0:00:27.8]}
44. Ke5 {[%clk 0:00:20.4]} 44... g3 {[%clk 0:00:28.3]} 45. Kd6 {[%clk
0:00:20.1]} 45... Rc6+ {[%clk 0:00:28.2]} 46. Ke5 {[%clk 0:00:18]} 46... g2
{[%clk 0:00:28.5]} 47. Rc1 {[%clk 0:00:10.3]} 47... g1=Q {[%clk 0:00:28.9]} 48.
Rxg1 {[%clk 0:00:08.9]} 48... Kxc4 {[%clk 0:00:29.8]} 49. Rg4+ {[%clk
0:00:07.4]} 49... Bxg4 {[%clk 0:00:29.8]} 0-1

[Event "*** SCC Grand Prix: Titled Tuesday Blitz"]
[Site "Chess.com"]
[Date "2020.10.13"]
[Round "5"]
[White "LubovMarkelova"]
[Black "albi1999"]
[Result "0-1"]
[WhiteElo "2247"]
[BlackElo "2620"]
[TimeControl "180+1"]
[EndTime "10:56:24 PDT"]
[Termination "albi1999 won by resignation"]

1. Nf3 {[%clk 0:03:00.9]} 1... d5 {[%clk 0:02:52.9]} 2. d4 {[%clk 0:03:00.3]}
2... Nf6 {[%clk 0:02:50.5]} 3. c4 {[%clk 0:03:00.3]} 3... e6 {[%clk 0:02:49.8]}
4. e3 {[%clk 0:03:00.2]} 4... b6 {[%clk 0:02:48.5]} 5. Nc3 {[%clk 0:02:59.3]}
5... Bd6 {[%clk 0:02:45.5]} 6. b3 {[%clk 0:02:57.4]} 6... O-O {[%clk 0:02:42.6]}
7. Bd3 {[%clk 0:02:57]} 7... a6 {[%clk 0:02:42.1]} 8. Bb2 {[%clk 0:02:55.8]}
8... Bb7 {[%clk 0:02:40.9]} 9. cxd5 {[%clk 0:02:53.8]} 9... exd5 {[%clk
0:02:41.8]} 10. O-O {[%clk 0:02:53.4]} 10... Nbd7 {[%clk 0:02:42.2]} 11. Rc1
{[%clk 0:02:53.3]} 11... Ne4 {[%clk 0:02:37.4]} 12. Ne2 {[%clk 0:02:53.4]} 12...
Qe7 {[%clk 0:02:31.2]} 13. Ng3 {[%clk 0:02:48]} 13... f5 {[%clk 0:02:28.4]} 14.
Re1 {[%clk 0:02:27.6]} 14... Rac8 {[%clk 0:02:22]} 15. Rc2 {[%clk 0:02:18.9]}
15... g6 {[%clk 0:02:20.2]} 16. Qa1 {[%clk 0:02:18]} 16... Rf7 {[%clk
0:02:13.1]} 17. Ne5 {[%clk 0:02:16.4]} 17... Nxe5 {[%clk 0:02:07]} 18. dxe5
{[%clk 0:02:16.6]} 18... Bb4 {[%clk 0:02:07.5]} 19. Rd1 {[%clk 0:01:51.5]} 19...
Qe6 {[%clk 0:01:51]} 20. a3 {[%clk 0:01:48.4]} 20... Bf8 {[%clk 0:01:50.3]} 21.
Ne2 {[%clk 0:01:48.4]} 21... g5 {[%clk 0:01:37.6]} 22. Nd4 {[%clk 0:01:47.9]}
22... Qxe5 {[%clk 0:01:30]} 23. f3 {[%clk 0:01:30.9]} 23... Nc5 {[%clk
0:00:57.7]} 24. Nxf5 {[%clk 0:01:26.8]} 24... Qe6 {[%clk 0:00:57.5]} 25. e4
{[%clk 0:00:45.9]} 25... Nxd3 {[%clk 0:00:40.8]} 26. Rxd3 {[%clk 0:00:39.1]}
26... dxe4 {[%clk 0:00:39.8]} 27. Nd4 {[%clk 0:00:35.1]} 27... Qg6 {[%clk
0:00:33.9]} 28. fxe4 {[%clk 0:00:25.2]} 28... Bxe4 {[%clk 0:00:34.8]} 29. Rdd2
{[%clk 0:00:14.8]} 29... Bxc2 {[%clk 0:00:33.4]} 30. Rxc2 {[%clk 0:00:13.6]}
30... c5 {[%clk 0:00:30.6]} 31. Qc1 {[%clk 0:00:10.3]} 31... Re8 {[%clk
0:00:26.5]} 32. Nf3 {[%clk 0:00:10.3]} 32... Bg7 {[%clk 0:00:23.8]} 33. Bxg7
{[%clk 0:00:09.4]} 33... Rxg7 {[%clk 0:00:22.2]} 34. b4 {[%clk 0:00:08.8]} 34...
g4 {[%clk 0:00:22]} 35. Nh4 {[%clk 0:00:07.4]} 35... Qf6 {[%clk 0:00:21]} 36. g3
{[%clk 0:00:07.5]} 36... Qd4+ {[%clk 0:00:20.3]} 37. Kg2 {[%clk 0:00:06.1]}
37... Qe4+ {[%clk 0:00:20.2]} 38. Kg1 {[%clk 0:00:05.6]} 38... Rf7 {[%clk
0:00:20.1]} 39. bxc5 {[%clk 0:00:04.5]} 39... bxc5 {[%clk 0:00:20.2]} 40. Qd1
{[%clk 0:00:03]} 40... Qe3+ {[%clk 0:00:18.2]} 41. Kg2 {[%clk 0:00:02.8]} 41...
Qe4+ {[%clk 0:00:15.7]} 42. Kg1 {[%clk 0:00:03.1]} 42... c4 {[%clk 0:00:16.3]}
43. Rd2 {[%clk 0:00:02.7]} 43... c3 {[%clk 0:00:15.7]} 44. Re2 {[%clk
0:00:03.1]} 44... Qxe2 {[%clk 0:00:15.5]} 0-1

[Event "*** SCC Grand Prix: Titled Tuesday Blitz"]
[Site "Chess.com"]
[Date "2020.10.13"]
[Round "5"]
[White "MVM2008"]
[Black "Alexander_Zubov"]
[Result "0-1"]
[WhiteElo "2194"]
[BlackElo "2908"]
[TimeControl "180+1"]
[EndTime "10:56:24 PDT"]
[Termination "Alexander_Zubov won on time"]

1. e4 {[%clk 0:03:00.9]} 1... c5 {[%clk 0:02:58.5]} 2. Nf3 {[%clk 0:03:00.7]}
2... e6 {[%clk 0:02:58.5]} 3. d4 {[%clk 0:03:01.6]} 3... cxd4 {[%clk 0:02:58.6]}
4. Nxd4 {[%clk 0:03:02.5]} 4... a6 {[%clk 0:02:58.9]} 5. Bd3 {[%clk 0:03:00.2]}
5... Bc5 {[%clk 0:02:56.4]} 6. Nb3 {[%clk 0:03:00]} 6... Be7 {[%clk 0:02:56.1]}
7. O-O {[%clk 0:02:58.4]} 7... d6 {[%clk 0:02:55.3]} 8. f4 {[%clk 0:02:57.6]}
8... Nd7 {[%clk 0:02:50.5]} 9. Nc3 {[%clk 0:02:35.9]} 9... Ngf6 {[%clk
0:02:48.2]} 10. g4 {[%clk 0:02:24.6]} 10... g6 {[%clk 0:02:35.7]} 11. g5 {[%clk
0:02:00.4]} 11... Nh5 {[%clk 0:02:34.4]} 12. Be2 {[%clk 0:01:51.5]} 12... Ng7
{[%clk 0:02:33.2]} 13. Nd4 {[%clk 0:01:38.9]} 13... e5 {[%clk 0:02:14.4]} 14. f5
{[%clk 0:01:19.6]} 14... exd4 {[%clk 0:01:33.7]} 15. Qxd4 {[%clk 0:01:18.4]}
15... O-O {[%clk 0:01:03]} 16. f6 {[%clk 0:01:14]} 16... Ne6 {[%clk 0:01:00.8]}
17. fxe7 {[%clk 0:01:03.5]} 17... Nxd4 {[%clk 0:00:59.7]} 18. exd8=Q {[%clk
0:01:03.1]} 18... Rxd8 {[%clk 0:00:52.4]} 19. Bd3 {[%clk 0:00:55.9]} 19... Ne5
{[%clk 0:00:43.4]} 20. Bf4 {[%clk 0:00:36.9]} 20... Be6 {[%clk 0:00:36.3]} 21.
Bxe5 {[%clk 0:00:22.6]} 21... dxe5 {[%clk 0:00:35.8]} 22. Nd5 {[%clk 0:00:20.5]}
22... Bxd5 {[%clk 0:00:31.6]} 23. exd5 {[%clk 0:00:21.3]} 23... Rxd5 {[%clk
0:00:31.7]} 24. Be4 {[%clk 0:00:19]} 24... Rd7 {[%clk 0:00:28.8]} 25. c3 {[%clk
0:00:14.1]} 25... Ne6 {[%clk 0:00:26.3]} 26. Rad1 {[%clk 0:00:10.4]} 26... Rad8
{[%clk 0:00:23.2]} 27. Rxd7 {[%clk 0:00:06.5]} 27... Rxd7 {[%clk 0:00:23.1]} 28.
h4 {[%clk 0:00:06.8]} 28... Kg7 {[%clk 0:00:20.3]} 29. Bf3 {[%clk 0:00:05]}
29... Nf4 {[%clk 0:00:12.9]} 30. Rd1 {[%clk 0:00:05.2]} 30... Rxd1+ {[%clk
0:00:12.5]} 31. Bxd1 {[%clk 0:00:06.1]} 31... h6 {[%clk 0:00:12.1]} 32. gxh6+
{[%clk 0:00:05.4]} 32... Kxh6 {[%clk 0:00:12.1]} 33. Kh2 {[%clk 0:00:04.8]}
33... f5 {[%clk 0:00:11.2]} 34. Kg3 {[%clk 0:00:04.6]} 34... g5 {[%clk
0:00:09.5]} 35. hxg5+ {[%clk 0:00:04.4]} 35... Kxg5 {[%clk 0:00:09.6]} 36. b4
{[%clk 0:00:02.6]} 36... Nd5 {[%clk 0:00:08.4]} 37. c4 {[%clk 0:00:02.3]} 37...
Nxb4 {[%clk 0:00:08.5]} 38. a3 {[%clk 0:00:02.6]} 38... Nc6 {[%clk 0:00:08.1]}
39. Bb3 {[%clk 0:00:02.3]} 39... Nd4 {[%clk 0:00:07.6]} 40. Bd1 {[%clk 0:00:02]}
40... f4+ {[%clk 0:00:08.1]} 41. Kf2 {[%clk 0:00:02.4]} 41... e4 {[%clk
0:00:08.7]} 42. Ba4 {[%clk 0:00:01.2]} 42... e3+ {[%clk 0:00:09.6]} 0-1

[Event "*** SCC Grand Prix: Titled Tuesday Blitz"]
[Site "Chess.com"]
[Date "2020.10.13"]
[Round "5"]
[White "AleksibFan"]
[Black "UmarovSabir"]
[Result "0-1"]
[WhiteElo "2555"]
[BlackElo "2385"]
[TimeControl "180+1"]
[EndTime "10:56:24 PDT"]
[Termination "UmarovSabir won on time"]

1. d4 {[%clk 0:03:00.9]} 1... g6 {[%clk 0:02:59.1]} 2. Nf3 {[%clk 0:03:00.7]}
2... Bg7 {[%clk 0:02:58.6]} 3. g3 {[%clk 0:03:01.6]} 3... Nf6 {[%clk 0:02:53.4]}
4. Bg2 {[%clk 0:03:01.7]} 4... O-O {[%clk 0:02:52.6]} 5. O-O {[%clk 0:03:02.6]}
5... d6 {[%clk 0:02:45.7]} 6. Re1 {[%clk 0:03:02.4]} 6... c6 {[%clk 0:02:45.3]}
7. a4 {[%clk 0:03:00.3]} 7... a5 {[%clk 0:02:44]} 8. e4 {[%clk 0:02:58.2]} 8...
Na6 {[%clk 0:02:37.2]} 9. Nc3 {[%clk 0:02:49.1]} 9... Qb6 {[%clk 0:02:13.2]} 10.
h3 {[%clk 0:02:46.5]} 10... Rd8 {[%clk 0:02:08.7]} 11. b3 {[%clk 0:02:28.5]}
11... Nb4 {[%clk 0:02:01]} 12. Be3 {[%clk 0:02:25.3]} 12... Qc7 {[%clk
0:01:56.9]} 13. Qd2 {[%clk 0:02:22.5]} 13... e5 {[%clk 0:01:50.1]} 14. Rad1
{[%clk 0:02:19]} 14... Be6 {[%clk 0:01:30.8]} 15. Ng5 {[%clk 0:01:43.2]} 15...
Bd7 {[%clk 0:01:04.5]} 16. f4 {[%clk 0:01:02.2]} 16... exd4 {[%clk 0:01:03.9]}
17. Bxd4 {[%clk 0:01:01.8]} 17... c5 {[%clk 0:01:03.7]} 18. Bf2 {[%clk
0:00:52.1]} 18... Bc6 {[%clk 0:01:00.6]} 19. Nd5 {[%clk 0:00:41.7]} 19... Nbxd5
{[%clk 0:00:51.1]} 20. exd5 {[%clk 0:00:42.6]} 20... Bd7 {[%clk 0:00:51.2]} 21.
c4 {[%clk 0:00:35.3]} 21... h6 {[%clk 0:00:49.1]} 22. Nf3 {[%clk 0:00:25.5]}
22... Re8 {[%clk 0:00:48.6]} 23. Nh4 {[%clk 0:00:12.6]} 23... b6 {[%clk
0:00:43.6]} 24. Rxe8+ {[%clk 0:00:11.8]} 24... Rxe8 {[%clk 0:00:43.2]} 25. Re1
{[%clk 0:00:11.8]} 25... Qd8 {[%clk 0:00:41.9]} 26. g4 {[%clk 0:00:09]} 26...
Nh7 {[%clk 0:00:32.7]} 27. Rxe8+ {[%clk 0:00:07.6]} 27... Qxe8 {[%clk
0:00:32.6]} 28. Nf3 {[%clk 0:00:06]} 28... Qe4 {[%clk 0:00:24.4]} 29. Qe3 {[%clk
0:00:05.6]} 29... Qxe3 {[%clk 0:00:20.3]} 30. Bxe3 {[%clk 0:00:06.5]} 30... h5
{[%clk 0:00:15]} 31. g5 {[%clk 0:00:03.2]} 31... Bf5 {[%clk 0:00:13.7]} 32. Nd2
{[%clk 0:00:03.5]} 32... Bc2 {[%clk 0:00:10]} 33. Be4 {[%clk 0:00:02.9]} 33...
Bd1 {[%clk 0:00:04.4]} 34. Bf3 {[%clk 0:00:01.9]} 34... Bc2 {[%clk 0:00:03.8]}
0-1

[Event "*** SCC Grand Prix: Titled Tuesday Blitz"]
[Site "Chess.com"]
[Date "2020.10.13"]
[Round "5"]
[White "barriochess"]
[Black "markberk"]
[Result "1-0"]
[WhiteElo "2275"]
[BlackElo "2397"]
[TimeControl "180+1"]
[EndTime "10:56:24 PDT"]
[Termination "barriochess won on time"]

1. d4 {[%clk 0:02:59.8]} 1... Nf6 {[%clk 0:02:58.9]} 2. c4 {[%clk 0:03:00.3]}
2... e6 {[%clk 0:02:58.5]} 3. Nf3 {[%clk 0:03:00.2]} 3... d5 {[%clk 0:02:57.3]}
4. g3 {[%clk 0:02:59.9]} 4... dxc4 {[%clk 0:02:56.3]} 5. Bg2 {[%clk 0:02:59.9]}
5... Nc6 {[%clk 0:02:54.3]} 6. O-O {[%clk 0:02:59.9]} 6... Rb8 {[%clk
0:02:53.3]} 7. Bg5 {[%clk 0:02:59.9]} 7... Be7 {[%clk 0:02:49.9]} 8. e3 {[%clk
0:02:45.8]} 8... b5 {[%clk 0:02:45.5]} 9. b3 {[%clk 0:02:40.1]} 9... cxb3 {[%clk
0:02:38.2]} 10. Qxb3 {[%clk 0:02:33.1]} 10... O-O {[%clk 0:02:31.1]} 11. Bxf6
{[%clk 0:02:31.3]} 11... Bxf6 {[%clk 0:02:29.4]} 12. Nbd2 {[%clk 0:02:31.5]}
12... a5 {[%clk 0:02:09.3]} 13. Rac1 {[%clk 0:02:30.5]} 13... Bd7 {[%clk
0:02:01.9]} 14. h4 {[%clk 0:02:28.7]} 14... h6 {[%clk 0:01:52.6]} 15. Ne4 {[%clk
0:02:28.1]} 15... Be7 {[%clk 0:01:38.5]} 16. Qb1 {[%clk 0:02:26.2]} 16... Nb4
{[%clk 0:01:31.9]} 17. Ne5 {[%clk 0:02:19.3]} 17... Bd6 {[%clk 0:01:12.5]} 18.
Rfd1 {[%clk 0:02:08.2]} 18... Qe7 {[%clk 0:01:11.5]} 19. Nc5 {[%clk 0:01:54.1]}
19... Bxe5 {[%clk 0:01:05.7]} 20. dxe5 {[%clk 0:01:53.6]} 20... Bc6 {[%clk
0:01:05.5]} 21. Bxc6 {[%clk 0:01:46.5]} 21... Nxc6 {[%clk 0:01:04.9]} 22. Rd7
{[%clk 0:01:45.8]} 22... Qe8 {[%clk 0:01:05.2]} 23. Qe4 {[%clk 0:01:45.5]} 23...
Nb4 {[%clk 0:00:59.9]} 24. Rxc7 {[%clk 0:01:43.2]} 24... Rd8 {[%clk 0:00:53.8]}
25. a3 {[%clk 0:01:38.4]} 25... Nd5 {[%clk 0:00:51.7]} 26. Ra7 {[%clk
0:01:32.6]} 26... f5 {[%clk 0:00:51.2]} 27. exf6 {[%clk 0:01:29.7]} 27... Rxf6
{[%clk 0:00:51.1]} 28. Qg4 {[%clk 0:01:20.8]} 28... Rf7 {[%clk 0:00:45.6]} 29.
Rxf7 {[%clk 0:01:16.7]} 29... Kxf7 {[%clk 0:00:41.6]} 30. Nb7 {[%clk 0:01:10]}
30... Rd7 {[%clk 0:00:37.8]} 31. Nxa5 {[%clk 0:01:00.3]} 31... Kg8 {[%clk
0:00:33.5]} 32. Rc6 {[%clk 0:00:54.7]} 32... Re7 {[%clk 0:00:26.7]} 33. Qe2
{[%clk 0:00:48.6]} 33... Kh7 {[%clk 0:00:23.2]} 34. Qxb5 {[%clk 0:00:47]} 34...
Qh5 {[%clk 0:00:22.1]} 35. Qd3+ {[%clk 0:00:44.8]} 35... Qg6 {[%clk 0:00:16.9]}
36. Qxg6+ {[%clk 0:00:44.1]} 36... Kxg6 {[%clk 0:00:16.7]} 37. Nc4 {[%clk
0:00:43.3]} 37... Kf6 {[%clk 0:00:15.9]} 38. a4 {[%clk 0:00:41.9]} 38... Rb7
{[%clk 0:00:14.8]} 39. a5 {[%clk 0:00:40]} 39... Rb1+ {[%clk 0:00:14.4]} 40. Kg2
{[%clk 0:00:40.2]} 40... Ra1 {[%clk 0:00:13.6]} 41. h5 {[%clk 0:00:33.9]} 41...
Nb4 {[%clk 0:00:12.9]} 42. Rb6 {[%clk 0:00:29.1]} 42... Nd3 {[%clk 0:00:12.1]}
43. Rd6 {[%clk 0:00:26.2]} 43... Nb4 {[%clk 0:00:09.2]} 44. e4 {[%clk 0:00:24]}
44... Ra2 {[%clk 0:00:06.9]} 45. e5+ {[%clk 0:00:23.9]} 45... Kf5 {[%clk
0:00:05.9]} 46. Rd4 {[%clk 0:00:21.9]} 1-0

[Event "*** SCC Grand Prix: Titled Tuesday Blitz"]
[Site "Chess.com"]
[Date "2020.10.13"]
[Round "5"]
[White "SilviusTiberius"]
[Black "Smirnov_Pavel"]
[Result "0-1"]
[WhiteElo "2594"]
[BlackElo "2842"]
[TimeControl "180+1"]
[EndTime "10:56:25 PDT"]
[Termination "Smirnov_Pavel won by resignation"]

1. e4 {[%clk 0:03:00.9]} 1... c5 {[%clk 0:02:59.4]} 2. Nf3 {[%clk 0:02:58.9]}
2... Nc6 {[%clk 0:02:59.5]} 3. d4 {[%clk 0:02:58.6]} 3... cxd4 {[%clk
0:02:59.6]} 4. Nxd4 {[%clk 0:02:59.1]} 4... Nf6 {[%clk 0:03:00.2]} 5. Nc3 {[%clk
0:02:58.8]} 5... e5 {[%clk 0:03:00.7]} 6. Ndb5 {[%clk 0:02:58.7]} 6... d6 {[%clk
0:03:01.2]} 7. Nd5 {[%clk 0:02:59.2]} 7... Nxd5 {[%clk 0:03:01.1]} 8. exd5
{[%clk 0:03:00.1]} 8... Nb8 {[%clk 0:03:01.6]} 9. a4 {[%clk 0:02:55.9]} 9... Be7
{[%clk 0:03:01.1]} 10. Be2 {[%clk 0:02:55.8]} 10... O-O {[%clk 0:03:01.5]} 11.
O-O {[%clk 0:02:55.7]} 11... Nd7 {[%clk 0:02:57.2]} 12. Be3 {[%clk 0:02:54.2]}
12... a6 {[%clk 0:02:08.6]} 13. Na3 {[%clk 0:02:52.1]} 13... f5 {[%clk
0:01:58.9]} 14. f3 {[%clk 0:02:50.4]} 14... Bg5 {[%clk 0:01:33.2]} 15. Bf2
{[%clk 0:02:50]} 15... Rf6 {[%clk 0:01:31.8]} 16. Nc4 {[%clk 0:02:32]} 16... Rh6
{[%clk 0:01:31.2]} 17. a5 {[%clk 0:02:24.2]} 17... Bh4 {[%clk 0:01:29.5]} 18. g3
{[%clk 0:02:13.6]} 18... Bg5 {[%clk 0:01:26.4]} 19. Ra3 {[%clk 0:01:52.4]} 19...
f4 {[%clk 0:01:25.3]} 20. Bd3 {[%clk 0:00:52.2]} 20... Nf8 {[%clk 0:01:01.6]}
21. Nb6 {[%clk 0:00:46.9]} 21... Rb8 {[%clk 0:00:58.7]} 22. Nxc8 {[%clk
0:00:42.6]} 22... Qxc8 {[%clk 0:00:59.5]} 23. g4 {[%clk 0:00:41.8]} 23... Qd8
{[%clk 0:00:57.8]} 24. Qe1 {[%clk 0:00:35.8]} 24... Bh4 {[%clk 0:00:30.6]} 25.
Qe4 {[%clk 0:00:26.4]} 25... Bxf2+ {[%clk 0:00:29.2]} 26. Rxf2 {[%clk
0:00:27.3]} 26... Nd7 {[%clk 0:00:27.6]} 27. b4 {[%clk 0:00:24.2]} 27... Nf6
{[%clk 0:00:25.9]} 28. Qf5 {[%clk 0:00:24.4]} 28... Kh8 {[%clk 0:00:21.8]} 29.
c4 {[%clk 0:00:18.2]} 29... g6 {[%clk 0:00:13.9]} 30. Qg5 {[%clk 0:00:14.7]}
30... Kg7 {[%clk 0:00:13.1]} 31. Re2 {[%clk 0:00:10.5]} 31... Qc7 {[%clk
0:00:10.6]} 32. c5 {[%clk 0:00:10.1]} 32... Rd8 {[%clk 0:00:08.5]} 33. Rc3
{[%clk 0:00:09.1]} 33... Nxd5 {[%clk 0:00:06.9]} 34. Rc1 {[%clk 0:00:08.7]}
34... Nf6 {[%clk 0:00:06.6]} 35. Rec2 {[%clk 0:00:07.3]} 35... Rh3 {[%clk
0:00:05.6]} 36. cxd6 {[%clk 0:00:06.9]} 36... Qxd6 {[%clk 0:00:05.4]} 37. Bf1
{[%clk 0:00:07.5]} 37... Rxf3 {[%clk 0:00:04.6]} 38. Rc7+ {[%clk 0:00:08]} 38...
Rd7 {[%clk 0:00:04.3]} 39. Rxd7+ {[%clk 0:00:08.5]} 39... Nxd7 {[%clk
0:00:05.1]} 40. Rc8 {[%clk 0:00:08]} 40... Qd4+ {[%clk 0:00:04.7]} 41. Kg2
{[%clk 0:00:08.4]} 41... Qf2+ {[%clk 0:00:04.3]} 0-1

[Event "*** SCC Grand Prix: Titled Tuesday Blitz"]
[Site "Chess.com"]
[Date "2020.10.13"]
[Round "5"]
[White "MarceloPlaya"]
[Black "PhileKhoob"]
[Result "0-1"]
[WhiteElo "2278"]
[BlackElo "2505"]
[TimeControl "180+1"]
[EndTime "10:56:28 PDT"]
[Termination "PhileKhoob won on time"]

1. e4 {[%clk 0:02:48.4]} 1... c5 {[%clk 0:02:59.4]} 2. Nf3 {[%clk 0:02:46.7]}
2... d6 {[%clk 0:02:59.7]} 3. d4 {[%clk 0:02:45.5]} 3... cxd4 {[%clk 0:03:00.6]}
4. Nxd4 {[%clk 0:02:45]} 4... Nf6 {[%clk 0:03:01.3]} 5. Nc3 {[%clk 0:02:44.9]}
5... a6 {[%clk 0:03:02.2]} 6. Bg5 {[%clk 0:02:44.5]} 6... e6 {[%clk 0:03:02]} 7.
f4 {[%clk 0:02:40.9]} 7... Qb6 {[%clk 0:03:02.3]} 8. Nb3 {[%clk 0:02:39.6]} 8...
Be7 {[%clk 0:02:59]} 9. Qd2 {[%clk 0:02:39.1]} 9... Nc6 {[%clk 0:02:56.8]} 10.
O-O-O {[%clk 0:02:38.4]} 10... O-O {[%clk 0:02:55.6]} 11. g4 {[%clk 0:02:28.9]}
11... Rd8 {[%clk 0:02:53.2]} 12. Bxf6 {[%clk 0:02:20.4]} 12... Bxf6 {[%clk
0:02:53]} 13. g5 {[%clk 0:02:20.7]} 13... Be7 {[%clk 0:02:52.4]} 14. h4 {[%clk
0:02:17.4]} 14... Qc7 {[%clk 0:02:50]} 15. h5 {[%clk 0:02:15.2]} 15... b5 {[%clk
0:02:50.4]} 16. g6 {[%clk 0:02:13.3]} 16... fxg6 {[%clk 0:02:50.6]} 17. hxg6
{[%clk 0:02:12.6]} 17... h6 {[%clk 0:02:50.9]} 18. Kb1 {[%clk 0:02:07.5]} 18...
Bf6 {[%clk 0:02:50.9]} 19. Ne2 {[%clk 0:01:49.6]} 19... Bb7 {[%clk 0:02:30.3]}
20. Bh3 {[%clk 0:01:47.3]} 20... Qe7 {[%clk 0:02:28.6]} 21. Nbd4 {[%clk
0:01:39]} 21... Nxd4 {[%clk 0:02:20]} 22. Nxd4 {[%clk 0:01:38.2]} 22... Bxd4
{[%clk 0:02:15.2]} 23. Qxd4 {[%clk 0:01:37.1]} 23... Rac8 {[%clk 0:02:14.6]} 24.
Rhe1 {[%clk 0:01:29.8]} 24... Rc4 {[%clk 0:02:13.8]} 25. Qd3 {[%clk 0:01:18.4]}
25... Kh8 {[%clk 0:02:00.4]} 26. f5 {[%clk 0:01:13.4]} 26... e5 {[%clk
0:01:55.6]} 27. Bg2 {[%clk 0:01:05.9]} 27... a5 {[%clk 0:01:43.4]} 28. Qe3
{[%clk 0:00:58.3]} 28... Rdc8 {[%clk 0:01:33]} 29. Rd2 {[%clk 0:00:56.7]} 29...
b4 {[%clk 0:01:25.4]} 30. Rh1 {[%clk 0:00:55.6]} 30... Kg8 {[%clk 0:01:22.1]}
31. Rf1 {[%clk 0:00:49.6]} 31... Qc7 {[%clk 0:01:04.6]} 32. Rff2 {[%clk
0:00:43.7]} 32... a4 {[%clk 0:00:41.6]} 33. f6 {[%clk 0:00:42.9]} 33... gxf6
{[%clk 0:00:36.9]} 34. Qxh6 {[%clk 0:00:41.3]} 34... b3 {[%clk 0:00:32.7]} 35.
axb3 {[%clk 0:00:39.7]} 35... axb3 {[%clk 0:00:32.7]} 36. c3 {[%clk 0:00:30]}
36... Ra8 {[%clk 0:00:30.9]} 37. Qh7+ {[%clk 0:00:18.7]} 37... Qxh7 {[%clk
0:00:29.7]} 38. gxh7+ {[%clk 0:00:18.4]} 38... Kxh7 {[%clk 0:00:25.9]} 39. Rxd6
{[%clk 0:00:18.2]} 39... Bxe4+ {[%clk 0:00:17.9]} 40. Bxe4+ {[%clk 0:00:16.9]}
40... Rxe4 {[%clk 0:00:18.8]} 41. Rd1 {[%clk 0:00:14.3]} 41... Rea4 {[%clk
0:00:17.8]} 42. Kc1 {[%clk 0:00:12.7]} 42... Ra1+ {[%clk 0:00:17.1]} 43. Kd2
{[%clk 0:00:12.6]} 43... Rd8+ {[%clk 0:00:18]} 44. Ke2 {[%clk 0:00:12.4]} 44...
Raxd1 {[%clk 0:00:18.7]} 0-1